fUST/lending_fUST_20260203
["ID","MTS","AMOUNT","RATE_DAILY","PERIOD"]
[404327417,1770061987674,500.0,0.00013273,2]
[404327418,1770061987735,500.0,0.00013821,2]
[404327419,1770061990890,500.0,0.00013699,2]
[404327420,1770061991069,269.53009343,0.00013273,2]
[404327421,1770061991955,233.13095963,0.00013273,2]
[404327422,1770061992358,172.12410935,0.00013273,2]
[404327423,1770061992559,500.0,0.00013273,2]
[404327424,1770061993629,500.0,0.00013273,2]
[404327425,1770061993683,1000.0,0.00013821,2]
[404327426,1770061993737,228.79196395,0.00014368,2]
[404327427,1770061993759,1061.22050956,0.00014368,2]
[404327428,1770061993961,619.456376,0.00013273,2]
[404327429,1770061995086,500.0,0.00013273,2]
[404327430,1770061995129,1000.0,0.00013821,2]
[404327431,1770061995197,1500.0,0.00014368,2]
[404327432,1770061995255,2000.0,0.00014916,2]
[404327433,1770061995310,1000.0,0.00015464,2]
[404327434,1770061997908,500.0,0.00013273,2]
[404327435,1770061998403,500.0,0.00013273,2]
[404327436,1770061999199,500.0,0.00013273,2]
[404327437,1770061999605,819.33311444,0.00013821,2]
[404327438,1770061999629,180.66688556,0.00013821,2]
[404327439,1770061999662,1500.0,0.00014368,2]
[404327440,1770061999688,502.31062213,0.00013273,2]
[404327441,1770061999722,2000.0,0.00014916,2]
[404327442,1770061999768,1131.25658532,0.00015464,2]
[404327443,1770061999833,500.0,0.00013273,2]
[404327444,1770062000124,500.0,0.00013273,2]
[404327445,1770062001577,500.0,0.00013273,2]
[404327446,1770062001631,295.30906235,0.00013821,2]
[404327447,1770062001658,500.0,0.00013699,2]
[404327448,1770062002203,500.0,0.00013699,2]
[404327449,1770062002229,500.0,0.00013273,2]
[404327451,1770062002331,500.0,0.00013699,2]
[404327452,1770062002402,407.76396207,0.00014247,2]
[404327453,1770062043150,482.70288257,0.00013273,2]
[404327454,1770062043172,17.29711743,0.00013273,2]
[404327455,1770062043198,500.0,0.00013273,2]
[404327456,1770062043225,423.27562291,0.00013273,2]
[404327457,1770062043251,500.0,0.00013273,2]
[404327458,1770062043276,500.0,0.00013821,2]
[404327459,1770062043304,500.0,0.00013821,2]
[404327460,1770062043760,162.36224734,0.00013273,2]
[404327461,1770062043793,500.0,0.00013273,2]
[404327462,1770062043821,507.77467851,0.00013699,2]
[404327463,1770062043853,500.0,0.00013821,2]
[404327466,1770062103566,500.0,0.00013273,2]
[404327467,1770062103601,1000.0,0.00013821,2]
[404327468,1770062103662,696.99444629,0.00014368,2]
[404327469,1770062103711,500.0,0.00013273,2]
[404327470,1770062106638,500.0,0.00013273,2]
[404327471,1770062107154,500.0,0.00013699,2]
[404327472,1770062107223,500.0,0.00013273,2]
[404327473,1770062107287,500.0,0.00013821,2]
[404327474,1770062107545,500.0,0.00013273,2]
[404327476,1770062164439,500.0,0.00013273,2]
[404327477,1770062164499,192.30588752,0.00013821,2]
[404327478,1770062164522,807.69411248,0.00013821,2]
[404327479,1770062164555,1537.09130346,0.00014368,2]
[404327480,1770062164869,317.00405761,0.00013273,2]
[404327483,1770062223179,500.0,0.00013273,2]
[404327484,1770062223245,1000.0,0.00013821,2]
[404327485,1770062223308,500.0,0.00014368,2]
[404327486,1770062223360,500.0,0.00013273,2]
[404327487,1770062223386,500.0,0.00013273,2]
[404327488,1770062223411,466.38675837,0.00013699,2]
[404327489,1770062223436,502.06898287,0.00013821,2]
[404327490,1770062223461,1000.0,0.00013821,2]
[404327491,1770062223487,500.0,0.00013273,2]
[404327492,1770062223512,500.0,0.00013273,2]
[404327493,1770062223538,517.70214457,0.00014368,2]
[404327494,1770062223563,500.0,0.00013821,2]
[404327495,1770062223588,352.06264064,0.00013273,2]
[404327496,1770062223611,147.93735936,0.00013273,2]
[404327497,1770062223637,1000.0,0.00013821,2]
[404327498,1770062223750,315.78070935,0.00014368,2]
[404327500,1770062224641,368.23248936,0.00013699,2]
[404327501,1770062224971,217.71855211,0.00013273,2]
[404327502,1770062225186,500.000001,0.00013273,2]
[404327503,1770062225376,784.76215271,0.00014247,2]
[404327504,1770062225405,500.0,0.00013699,2]
[404327505,1770062225439,1000.0,0.00014247,2]
[404327506,1770062225464,500.0,0.00013699,2]
[404327507,1770062225490,500.0,0.00013273,2]
[404327508,1770062225515,1107.28457106,0.00014795,2]
[404327509,1770062225540,500.0,0.00013821,2]
[404327514,1770062286214,549.25758142,0.00013273,2]
[404327515,1770062286314,500.0,0.00013273,2]
[404327516,1770062286520,500.0,0.00013699,2]
[404327517,1770062286552,500.0,0.00013699,2]
[404327518,1770062286776,500.0,0.00013273,2]
[404327519,1770062286831,9.03658363,0.00013821,2]
[404327520,1770062286853,990.96341637,0.00013821,2]
[404327521,1770062286881,1384.82582551,0.00014368,2]
[404327532,1770062404435,500.65001385,0.00013699,2]
[404327533,1770062404675,549.41591458,0.00013273,2]
[404327534,1770062405076,194.72932748,0.00013699,2]
[404327535,1770062405464,500.95024405,0.00013699,2]
[404327578,1770062525954,533.0826609,0.00013699,2]
[404327579,1770062526126,500.0,0.00013699,2]
[404327580,1770062526180,564.71141812,0.00014247,2]
[404327582,1770062528891,201.23226476,0.00013673,2]
[404327712,1770062704159,500.0,0.00013699,2]
[404327713,1770062704205,500.0,0.00013273,2]
[404327714,1770062704232,1000.0,0.00014247,2]
[404327715,1770062704259,501.76365168,0.00013699,2]
[404327716,1770062704285,500.0,0.00013821,2]
[404327717,1770062704312,168.00611586,0.00013273,2]
[404327718,1770062704338,500.0,0.00013273,2]
[404327719,1770062704364,409.67914684,0.00013273,2]
[404327720,1770062704386,90.32085316,0.00013273,2]
[404327721,1770062704412,662.52274592,0.00013821,2]
[404327722,1770062704438,1000.0,0.00013821,2]
[404327723,1770062704464,500.75803963,0.00013699,2]
[404327724,1770062704490,1017.09664357,0.00014368,2]
[404327725,1770062704530,502.00459045,0.00013699,2]
[404327726,1770062704586,166.03712319,0.00013273,2]
[404327734,1770062763335,314.792435,0.00013699,2]
[404328006,1770062943140,529.59948626,0.00013273,2]
[404328052,1770063031830,-313.80564565,0.00024228,2]
[404328053,1770063031840,-4335.76602384,0.00026475,2]
[404328054,1770063031849,-1200.0,0.00026574,2]
[404328055,1770063031859,-272.715,0.00026575,13]
[404328056,1770063031868,-272.715,0.00026575,13]
[404328057,1770063031878,-272.715,0.00026575,13]
[404328058,1770063031887,-272.715,0.00026575,13]
[404328059,1770063031897,-11184.64670223,0.00027565,2]
[404328060,1770063031909,-210.3631259,0.00027663,2]
[404328061,1770063031923,-50000.0,0.00027664,2]
[404328062,1770063031939,-300.0,0.00027665,30]
[404328063,1770063031953,-300.0,0.00027665,30]
[404328064,1770063031965,-300.0,0.00027665,30]
[404328065,1770063031977,-300.0,0.00027665,30]
[404328066,1770063031991,-300.0,0.00027665,30]
[404328067,1770063032003,-300.0,0.00027665,30]
[404328068,1770063032017,-300.0,0.00027665,30]
[404328069,1770063032030,-300.0,0.00027665,30]
[404328070,1770063032042,-300.0,0.00027665,30]
[404328071,1770063032057,-300.0,0.00027665,30]
[404328072,1770063032071,-300.0,0.00027665,30]
[404328073,1770063032086,-300.0,0.00027665,30]
[404328074,1770063032099,-300.0,0.00027665,30]
[404328075,1770063032112,-300.0,0.00027665,30]
[404328076,1770063032124,-300.0,0.00027665,30]
[404328077,1770063032136,-185.80966058,0.000281,2]
[404328078,1770063032148,-156.63356007,0.00028354,2]
[404328079,1770063032160,-153.36484115,0.00028642,2]
[404328080,1770063032172,-600.0,0.00030139,30]
[404328081,1770063032186,-158.618,0.00032155,31]
[404328082,1770063032198,-500.0,0.00032877,10]
[404328083,1770063032210,-720.0,0.00033153,30]
[404328084,1770063032223,-800.0,0.00033335,2]
[404328085,1770063032234,-500.0,0.00033552,120]
[404328086,1770063032245,-500.0,0.00033552,120]
[404328087,1770063032258,-500.0,0.00033552,120]
[404328088,1770063032269,-500.0,0.00033552,120]
[404328089,1770063032281,-500.0,0.00033552,120]
[404328090,1770063032294,-442.2776453,0.00033552,120]
[404328091,1770063032311,-740.75809701,0.00033552,7]
[404328092,1770063032323,-500.0,0.00033553,120]
[404328093,1770063032335,-500.0,0.00033553,120]
[404328094,1770063032348,-527.43989334,0.00033553,120]
[404328095,1770063032360,-1000.0,0.00033554,30]
[404328096,1770063032374,-250.0,0.00033692,2]
[404328097,1770063032388,-281.94040812,0.00034738,2]
[404328098,1770063032399,-742.49540367,0.00035433,2]
[404328099,1770063032411,-276.05671407,0.00035812,2]
[404328100,1770063032423,-653.79,0.00035978,10]
[404328101,1770063032437,-71181.58562379,0.00035988,2]
[404328102,1770063032449,-864.0,0.00036468,30]
[404328103,1770063032462,-501.22739222,0.0003829,2]
[404328104,1770063032476,-275.06259211,0.00038667,2]
[404328105,1770063032488,-300.0,0.00039199,30]
[404328106,1770063032500,-300.0,0.00039199,30]
[404328107,1770063032510,-300.0,0.00039199,30]
[404328108,1770063032521,-300.0,0.00039199,30]
[404328109,1770063032532,-300.0,0.00039199,30]
[404328110,1770063032545,-300.0,0.00039199,30]
[404328111,1770063032560,-300.0,0.00039199,30]
[404328112,1770063032571,-300.0,0.00039199,30]
[404328113,1770063032581,-300.0,0.00039199,30]
[404328114,1770063032591,-300.0,0.00039199,30]
[404328115,1770063032601,-300.0,0.00039199,30]
[404328116,1770063032613,-300.0,0.00039199,30]
[404328117,1770063032624,-469.0,0.000392,30]
[404328118,1770063032636,-9026.07752921,0.00039216,2]
[404328119,1770063032646,-1538.68,0.00039216,2]
[404328120,1770063032657,-490.76749169,0.00039475,2]
[404328121,1770063032668,-441.81720426,0.00039658,5]
[404328122,1770063032680,-1957.92,0.000398,14]
[404328123,1770063032691,-250.0,0.00039976,2]
[404328124,1770063032701,-250.0,0.00039976,2]
[404328125,1770063032712,-250.0,0.00039976,2]
[404328126,1770063032723,-250.0,0.00039976,2]
[404328127,1770063032734,-250.0,0.00039976,2]
[404328128,1770063032745,-250.0,0.00039976,2]
[404328129,1770063032755,-250.0,0.00039976,2]
[404328130,1770063032766,-250.0,0.00039976,2]
[404328131,1770063032777,-250.0,0.00039976,2]
[404328132,1770063032788,-250.0,0.00039976,2]
[404328133,1770063032799,-250.0,0.00039976,2]
[404328134,1770063032812,-916.52592375,0.0003999,3]
[404328135,1770063032824,-220.42369198,0.00039998,5]
[404328136,1770063032835,-2000.0,0.00039999,120]
[404328137,1770063032846,-113712.84796256,0.0004,2]
[404328168,1770063038066,-500.0,0.00027663,2]
[404328170,1770063038076,-156.72216624,0.00027663,2]
[404328172,1770063038085,-500.0,0.00027663,2]
[404328174,1770063038095,-500.0,0.00027663,2]
[404328176,1770063038105,-500.0,0.00027663,2]
[404328178,1770063038114,-500.0,0.00027663,2]
[404328180,1770063038124,-500.0,0.00027663,2]
[404328182,1770063038133,-500.0,0.00027663,2]
[404328184,1770063038142,-500.0,0.00027663,2]
[404328186,1770063038152,-500.0,0.00027663,2]
[404328188,1770063038161,-500.0,0.00027663,2]
[404328190,1770063038171,-500.0,0.00027663,2]
[404328192,1770063038180,-500.0,0.00027663,2]
[404328194,1770063038190,-500.0,0.00027663,2]
[404328196,1770063038200,-500.0,0.00027663,2]
[404328198,1770063038209,-500.0,0.00027663,2]
[404328200,1770063038218,-500.0,0.00027663,2]
[404328202,1770063038227,-500.0,0.00027663,2]
[404328204,1770063038236,-500.0,0.00027663,2]
[404328206,1770063038247,-500.0,0.00027663,2]
[404328208,1770063038256,-500.0,0.00027663,2]
[404328210,1770063038266,-500.0,0.00027663,2]
[404328212,1770063038276,-649.54393266,0.00027663,2]
[404328214,1770063038285,-500.0,0.00027663,2]
[404328216,1770063038295,-500.0,0.00027663,2]
[404328218,1770063038304,-500.0,0.00027663,2]
[404328220,1770063038315,-500.0,0.00027663,2]
[404328221,1770063038324,-500.0,0.00027663,2]
[404328223,1770063038334,-500.0,0.00027663,2]
[404328225,1770063038343,-500.0,0.00027663,2]
[404328227,1770063038352,-500.0,0.00027663,2]
[404328229,1770063038362,-500.0,0.00027663,2]
[404328231,1770063038370,-500.0,0.00027663,2]
[404328233,1770063038379,-500.0,0.00027663,2]
[404328235,1770063038388,-500.0,0.00027663,2]
[404328237,1770063038398,-500.0,0.00027663,2]
[404328239,1770063038407,-500.0,0.00027663,2]
[404328241,1770063038416,-500.0,0.00027663,2]
[404328243,1770063038426,-500.0,0.00027663,2]
[404328245,1770063038435,-500.0,0.00027663,2]
[404328247,1770063038444,-500.0,0.00027663,2]
[404328249,1770063038454,-500.0,0.00027663,2]
[404328251,1770063038463,-500.0,0.00027663,2]
[404328253,1770063038472,-500.0,0.00027663,2]
[404328255,1770063038482,-500.0,0.00027663,2]
[404328257,1770063038491,-55883.7339011,0.0004,2]
[404328814,1770063044453,-544.82,0.0003999,10]
[404328816,1770063044462,-19014.31736861,0.0004,2]
[404328953,1770063046152,-475.856,0.0004,2]
[404330497,1770063183533,181.96269739,0.00013273,2]
[404330503,1770063244565,560.77,0.00039213,30]
[404330505,1770063269280,151.0,0.00039213,120]
[404330506,1770063269631,151.0,0.00039213,120]
[404330507,1770063270071,151.0,0.00039213,120]
[404330508,1770063270394,178.682005,0.00039213,120]
[404330931,1770063885002,2003.84073768,0.00039214,30]
[404331098,1770064232125,-155.0,0.00027662,2]
[404331100,1770064232135,-1200.0,0.00028211,2]
[404331102,1770064232145,-300.0,0.00028212,2]
[404331104,1770064232155,-300.0,0.00028212,2]
[404331105,1770064232165,-300.0,0.00028212,2]
[404331106,1770064232175,-300.0,0.00028212,2]
[404331108,1770064232185,-300.0,0.00028212,2]
[404331110,1770064232195,-300.0,0.00028215,30]
[404331111,1770064232205,-300.0,0.00028215,30]
[404331112,1770064232215,-300.0,0.00028215,30]
[404331114,1770064232225,-300.0,0.00028215,30]
[404331115,1770064232236,-300.0,0.00028215,30]
[404331117,1770064232246,-300.0,0.00028215,30]
[404331119,1770064232255,-300.0,0.00028215,30]
[404331120,1770064232265,-300.0,0.00028215,30]
[404331122,1770064232274,-300.0,0.00028215,30]
[404331123,1770064232284,-300.0,0.00028215,30]
[404331124,1770064232293,-300.0,0.00028215,30]
[404331126,1770064232302,-300.0,0.00028215,30]
[404331128,1770064232312,-300.0,0.00028215,30]
[404331129,1770064232323,-300.0,0.00028215,30]
[404331130,1770064232333,-300.0,0.00028215,30]
[404331131,1770064232345,-4280.2878063,0.0002843,2]
[404331132,1770064232355,-401.0,0.00030462,2]
[404331133,1770064232365,-474.0,0.00030594,2]
[404331134,1770064232374,-1000.0,0.00031185,30]
[404331135,1770064232385,-231.75,0.00031317,10]
[404331136,1770064232396,-415.39,0.00031317,10]
[404331137,1770064232405,-160.55020563,0.00031326,2]
[404331138,1770064232416,-434.42236418,0.00031326,2]
[404331139,1770064232426,-500.0,0.00031326,2]
[404331140,1770064232435,-500.0,0.00031326,2]
[404331141,1770064232444,-500.0,0.00031326,2]
[404331142,1770064232453,-500.0,0.00031326,2]
[404331143,1770064232463,-500.0,0.00031326,2]
[404331144,1770064232472,-500.0,0.00031326,2]
[404331145,1770064232483,-500.0,0.00031326,2]
[404331146,1770064232493,-308.94314397,0.00031326,2]
[404331147,1770064232506,-191.05685603,0.00031326,2]
[404331148,1770064232516,-500.0,0.00031326,2]
[404331149,1770064232526,-500.0,0.00031326,2]
[404331150,1770064232536,-500.0,0.00031326,2]
[404331151,1770064232546,-500.0,0.00031326,2]
[404331152,1770064232556,-500.0,0.00031326,2]
[404331153,1770064232565,-500.0,0.00031326,2]
[404331154,1770064232574,-500.0,0.00031326,2]
[404331155,1770064232583,-500.0,0.00031326,2]
[404331156,1770064232591,-378.53045387,0.00031326,2]
[404331157,1770064232600,-500.0,0.00031326,2]
[404331158,1770064232610,-500.0,0.00031326,2]
[404331159,1770064232619,-500.0,0.00031326,2]
[404331160,1770064232629,-500.0,0.00031326,2]
[404331161,1770064232639,-500.0,0.00031326,2]
[404331162,1770064232648,-500.0,0.00031326,2]
[404331163,1770064232657,-500.0,0.00031326,2]
[404331164,1770064232667,-500.0,0.00031326,2]
[404331165,1770064232676,-500.0,0.00031326,2]
[404331166,1770064232686,-500.0,0.00031326,2]
[404331167,1770064232695,-500.0,0.00031326,2]
[404331168,1770064232704,-500.0,0.00031326,2]
[404331169,1770064232714,-500.0,0.00031326,2]
[404331170,1770064232723,-500.0,0.00031326,2]
[404331171,1770064232732,-500.0,0.00031326,2]
[404331172,1770064232741,-500.0,0.00031326,2]
[404331173,1770064232751,-500.0,0.00031326,2]
[404331174,1770064232760,-500.0,0.00031326,2]
[404331175,1770064232770,-500.0,0.00031326,2]
[404331176,1770064232779,-289.5602901,0.00031326,2]
[404331177,1770064232791,-210.4397099,0.00031326,2]
[404331178,1770064232801,-500.0,0.00031326,2]
[404331179,1770064232810,-500.0,0.00031326,2]
[404331180,1770064232819,-500.0,0.00031326,2]
[404331181,1770064232828,-500.0,0.00031326,2]
[404331182,1770064232837,-288.51971661,0.00031326,2]
[404331183,1770064232847,-500.0,0.00031326,2]
[404331184,1770064232856,-500.0,0.00031326,2]
[404331185,1770064232865,-500.0,0.00031326,2]
[404331186,1770064232874,-500.0,0.00031326,2]
[404331187,1770064232883,-500.0,0.00031326,2]
[404331188,1770064232893,-500.0,0.00031326,2]
[404331189,1770064232902,-500.0,0.00031326,2]
[404331190,1770064232911,-459.042712,0.00031326,2]
[404331191,1770064232920,-500.0,0.00031326,2]
[404331192,1770064232929,-69.70144138,0.00031326,2]
[404332001,1770064246363,-380.685,0.00031326,2]
[404332389,1770064344144,303.10001603,0.000189,2]
[404332390,1770064344180,303.10001603,0.00019467,2]
[404332391,1770064344215,303.10001603,0.00019089,2]
[404332392,1770064344267,303.10001603,0.00019278,2]
[404332393,1770064344328,303.10001603,0.00019656,2]
[404332394,1770064344386,454.65002405,0.00019845,4]
[404332542,1770064553671,3064.76528123,0.0001,2]
[404332543,1770064553693,10000.01,0.0001,2]
[404332544,1770064553717,10000.01,0.0001,2]
[404332545,1770064553740,10000.01,0.0001,2]
[404332546,1770064553762,10000.01,0.0001,2]
[404332547,1770064553784,10000.01,0.0001,2]
[404332548,1770064553806,10000.01,0.0001,2]
[404332549,1770064553828,10000.01,0.0001,2]
[404332550,1770064553850,10000.01,0.0001,2]
[404332551,1770064553872,10000.01,0.0001,2]
[404332552,1770064553894,2651.34471877,0.0001,2]
[404332583,1770064633058,303.10001605,0.000189,2]
[404332665,1770065012732,-5000.0,0.00020663,2]
[404332666,1770065012993,-5000.0,0.00020872,2]
[404332667,1770065013182,-2065.11440629,0.00021083,2]
[404332668,1770065013212,-300.0,0.00021295,2]
[404332669,1770065013240,-1200.0,0.0002151,2]
[404332670,1770065013267,-300.0,0.00021846,2]
[404332671,1770065013296,-300.0,0.00021846,2]
[404332672,1770065013325,-300.0,0.00021846,2]
[404332673,1770065013353,-150.0,0.00022058,2]
[404332674,1770065013491,-213.44413554,0.00022399,2]
[404332675,1770065013653,-426.88827108,0.00022399,2]
[404332676,1770065013728,-853.77654216,0.00022399,2]
[404332677,1770065013826,-1707.55308432,0.00022399,2]
[404332678,1770065013936,-3415.10616864,0.00022399,2]
[404332679,1770065014113,-3169.79766272,0.00022399,2]
[404332680,1770065014141,-225.18,0.000224,2]
[404332681,1770065014169,-458.96492981,0.00022499,2]
[404332682,1770065014196,-189.09058513,0.00022499,2]
[404332683,1770065014226,-302.07742669,0.00022499,2]
[404332684,1770065014255,-500.0,0.00022499,2]
[404332685,1770065014364,-500.0,0.00022499,2]
[404332686,1770065014394,-500.0,0.00022499,2]
[404332687,1770065014424,-500.0,0.00022499,2]
[404332688,1770065014454,-500.0,0.00022499,2]
[404332689,1770065014484,-500.0,0.00022499,2]
[404332690,1770065014515,-500.0,0.00022499,2]
[404332691,1770065014543,-500.0,0.00022499,2]
[404332692,1770065014575,-500.0,0.00022499,2]
[404332693,1770065014604,-500.0,0.00022499,2]
[404332694,1770065014634,-295.9042712,0.00022499,2]
[404332695,1770065014798,-500.0,0.00022499,2]
[404332696,1770065014914,-500.0,0.00022499,2]
[404332697,1770065014948,-500.0,0.00022499,2]
[404332698,1770065014978,-500.0,0.00022499,2]
[404332699,1770065015008,-500.0,0.00022499,2]
[404332700,1770065015039,-500.0,0.00022499,2]
[404332701,1770065015071,-500.0,0.00022499,2]
[404332702,1770065015100,-500.0,0.00022499,2]
[404332703,1770065015131,-500.0,0.00022499,2]
[404332704,1770065015161,-500.0,0.00022499,2]
[404332705,1770065015569,-500.0,0.00022499,2]
[404332706,1770065015607,-500.0,0.00022499,2]
[404332707,1770065015636,-500.0,0.00022499,2]
[404332708,1770065015672,-500.0,0.00022499,2]
[404332709,1770065015705,-500.0,0.00022499,2]
[404332710,1770065015736,-500.0,0.00022499,2]
[404332711,1770065015768,-500.0,0.00022499,2]
[404332712,1770065015803,-500.0,0.00022499,2]
[404332713,1770065015833,-500.0,0.00022499,2]
[404332714,1770065015866,-500.0,0.00022499,2]
[404332715,1770065016911,-490.70609078,0.00022499,2]
[404332716,1770065016941,-500.0,0.00022499,2]
[404332717,1770065016971,-500.0,0.00022499,2]
[404332718,1770065017083,-520.15520738,0.00022499,2]
[404332719,1770065017114,-500.0,0.00022499,2]
[404332720,1770065017144,-500.0,0.00022499,2]
[404332721,1770065017175,-500.0,0.00022499,2]
[404332722,1770065017204,-500.0,0.00022499,2]
[404332723,1770065017233,-500.0,0.00022499,2]
[404332724,1770065017263,-478.28740368,0.00022499,2]
[404332725,1770065017506,-21.71259632,0.00022499,2]
[404332726,1770065017538,-500.0,0.00022499,2]
[404332727,1770065021597,-0.01,0.000225,2]
[404332728,1770065021726,-0.02,0.000225,2]
[404332729,1770065021879,-0.04,0.000225,2]
[404332730,1770065022049,-0.08,0.000225,2]
[404332731,1770065022209,-0.16,0.000225,2]
[404332732,1770065022466,-0.32,0.000225,2]
[404332733,1770065022500,-0.64,0.000225,2]
[404332734,1770065022863,-241.22661292,0.000225,2]
[404332735,1770065022883,-9757.50338708,0.000225,2]
[404332736,1770065022892,-241.86661292,0.00022839,10]
[404332737,1770065022928,-58.13338708,0.00022839,10]
[404332738,1770065022957,-300.0,0.00022839,10]
[404332739,1770065022987,-300.0,0.00022839,10]
[404332740,1770065023015,-300.0,0.00022839,10]
[404332741,1770065023044,-300.0,0.00022839,10]
[404332742,1770065023074,-300.0,0.00022839,10]
[404332743,1770065023102,-300.0,0.00022839,10]
[404332744,1770065023131,-300.0,0.00022839,10]
[404332745,1770065023160,-300.0,0.00022839,10]
[404332746,1770065023188,-300.0,0.00022839,10]
[404332747,1770065023216,-300.0,0.00022839,10]
[404332748,1770065023244,-300.0,0.00022839,10]
[404332749,1770065023274,-300.0,0.00022839,10]
[404332750,1770065023303,-300.0,0.00022839,10]
[404332751,1770065023332,-300.0,0.00022839,10]
[404332752,1770065023364,-300.0,0.00023157,2]
[404332753,1770065023394,-283.74322584,0.00023295,10]
[404332754,1770065023428,-316.25677416,0.00023295,10]
[404332755,1770065023462,-177.0,0.00024058,2]
[404332756,1770065023494,-720.0,0.00025624,10]
[404332757,1770065023522,-304.09565492,0.00026056,2]
[404332758,1770065023553,-237.88509414,0.00026058,2]
[404332759,1770065023588,-1489.53495356,0.00026336,2]
[404332760,1770065023629,-3510.46504644,0.00026336,2]
[404332761,1770065024606,2979.07990712,0.00022275,2]
[404332885,1770065432243,-1428.97879449,0.0002036,2]
[404332886,1770065432299,-1000.0,0.0002036,2]
[404332887,1770065432311,-2571.02120551,0.0002036,2]
[404332888,1770065432320,-28.97879449,0.00020566,2]
[404332889,1770065432331,-2750.0,0.00020566,2]
[404332910,1770065438496,-2221.02120551,0.00020566,2]
[404332912,1770065438506,-736.0,0.00020774,2]
[404332914,1770065438515,-151.36190528,0.00020879,2]
[404332916,1770065438525,-256.64624405,0.00021196,2]
[404332918,1770065438534,-225.18,0.00022,2]
[404332920,1770065438543,-1516.1964778,0.0002338,2]
[404332922,1770065438552,-14571.3541959,0.0002338,2]
[404332924,1770065438561,-1685.69324305,0.00024853,4]
[404332926,1770065438571,-250.0,0.00025907,2]
[404332928,1770065438580,-14571.3541959,0.00026345,2]
[404332930,1770065438589,-178.90864032,0.00027078,4]
[404332932,1770065438598,-500.0,0.00027452,2]
[404332934,1770065438608,-498.96734342,0.00027452,2]
[404332936,1770065438616,-266.72443268,0.00027452,2]
[404332938,1770065438627,-210.59826412,0.00027452,2]
[404332940,1770065438637,-500.0,0.00027452,2]
[404332942,1770065438646,-335.57280082,0.00027452,2]
[404332944,1770065438655,-485.11147382,0.00027453,2]
[404332946,1770065438666,-1031.08500398,0.00027453,2]
[404332948,1770065438675,-1237.626872,0.0002812,2]
[404332950,1770065438684,-14571.3541959,0.0002931,2]
[404332952,1770065438694,-346.16,0.00031317,10]
[404332954,1770065438703,-212.86695845,0.00031326,2]
[404332956,1770065438713,-316.8173839,0.00031326,2]
[404332958,1770065438724,-570.27129103,0.00031326,2]
[404332960,1770065438733,-503.4201334,0.00031326,2]
[404332962,1770065438743,-1013.81562849,0.00031326,2]
[404332964,1770065438754,-325.64528559,0.00031326,2]
[404332966,1770065438763,-586.16151406,0.00031326,2]
[404332969,1770065438772,-57384.7757332,0.00031327,2]
[404333158,1770065440491,-8679.9608913,0.00031327,2]
[404333160,1770065440500,-1516.1964778,0.00031526,2]
[404333162,1770065440510,-380.0,0.00031656,2]
[404333164,1770065440520,-1042.06491389,0.00031717,2]